bitfinex/quotes_SOLUSD_20250929
["timestamp","ask_amount","ask_price","bid_price","bid_amount"]
[1759178827526,0.71,214.41,214.35,13.9060354]
[1759178827727,0.71,214.41,214.34,4.86547539]
[1759178828457,4.66374405,214.42,214.34,4.86547539]
[1759178828752,0.71,214.41,214.34,0.89]
[1759178828938,6.81175631,214.4,214.34,0.89]
[1759178829251,6.81175631,214.4,214.34,0.2]
[1759178829441,0.71,214.39,214.34,0.2]
[1759178829755,28.14757721,214.37,214.34,0.2]
[1759178830057,26.71,214.36,214.34,0.2]
[1759178830258,0.71,214.36,214.34,0.2]
[1759178830464,28.14757721,214.37,214.34,0.2]
[1759178830630,26.0,214.35,214.34,0.2]
[1759178830830,5.37504944,214.36,214.34,0.2]
[1759178831032,4.66504944,214.36,214.34,0.2]
[1759178831359,28.58156392,214.38,214.34,0.2]
[1759178831539,28.14757721,214.38,214.34,0.2]
[1759178831861,5.3767851,214.4,214.34,5.55548122]
[1759178832065,0.71,214.4,214.34,5.55548122]
[1759178832402,2.14757721,214.38,214.34,0.2]
[1759178832524,26.71,214.37,214.34,0.2]
[1759178832725,0.71,214.36,214.34,0.2]
[1759178832946,5.37526708,214.35,214.34,0.2]
[1759178833133,7.52284429,214.35,214.34,0.2]
[1759178834354,26.0,214.37,214.34,0.2]
[1759178834534,0.65,214.35,214.34,0.2]
[1759178835142,5.31526708,214.35,214.34,0.2]
[1759178835938,2.14757721,214.36,214.34,0.2]
[1759178836348,0.65,214.36,214.34,0.2]
[1759178836548,4.66508883,214.36,214.34,0.2]
[1759178836740,31.31484184,214.37,214.34,0.2]
[1759178836941,0.65,214.36,214.34,0.2]
[1759178837141,2.79757721,214.39,214.34,0.2]
[1759178837341,5.31479881,214.38,214.34,0.2]
[1759178838053,0.65,214.37,214.34,0.2]
[1759178838251,4.66479881,214.38,214.34,0.2]
[1759178838556,0.65,214.36,214.34,0.2]
[1759178839262,5.31515452,214.36,214.34,0.2]
[1759178839832,0.65,214.36,214.34,0.2]
[1759178840059,5.3151424,214.36,214.34,0.2]
[1759178840362,0.65,214.36,214.34,0.2]
[1759178840663,5.31508791,214.36,214.34,0.2]
[1759178840960,4.66508791,214.36,214.34,0.2]
[1759178841165,0.71,214.36,214.34,0.2]
[1759178841365,5.37524943,214.36,214.34,0.2]
[1759178842634,26.0,214.37,214.34,0.2]
[1759178842841,30.66483222,214.37,214.34,0.2]
[1759178843155,0.71,214.36,214.34,0.2]
[1759178843360,2.14757721,214.35,214.34,0.2]
[1759178843561,2.85757721,214.35,214.34,0.2]
[1759178843858,0.71,214.35,214.34,0.2]
[1759178844058,4.66465398,214.38,214.34,0.2]
[1759178844272,5.37465398,214.38,214.34,0.2]
[1759178844569,0.71,214.37,214.34,0.2]
[1759178844772,4.66504944,214.36,214.34,0.2]
[1759178845344,5.37504944,214.36,214.34,0.2]
[1759178845655,0.71,214.35,214.34,0.2]
[1759178846671,31.37526708,214.35,214.34,0.2]
[1759178848064,30.66526708,214.35,214.34,0.2]
[1759178848443,31.37526708,214.35,214.34,0.2]
[1759178854080,44.97086109,214.35,214.34,0.2]
[1759178854266,78.59086109,214.35,214.34,0.2]
[1759178857372,81.71998614,214.35,214.34,0.2]
[1759178860276,83.86756335,214.35,214.34,0.2]
[1759178861283,50.24756335,214.35,214.34,0.2]
[1759178861486,4.66526708,214.35,214.34,0.2]
[1759178861786,64.28526708,214.35,214.34,0.2]
[1759178861962,30.66526708,214.35,214.34,0.2]
[1759178862164,5.37526708,214.35,214.34,0.2]
[1759178862575,13.59559401,214.32,214.31,1e-08]
[1759178862783,49.46317122,214.32,214.31,1e-08]
[1759178863083,53.03101776,214.32,214.31,1e-08]
[1759178863383,5.71542375,214.32,214.31,1e-08]
[1759178863590,43.1758497,214.32,214.31,1e-08]
[1759178863775,46.30892107,214.32,214.31,1e-08]
[1759178864269,44.16134386,214.32,214.31,1e-08]
[1759178864590,42.28899148,214.32,214.31,1e-08]
[1759178864763,39.15592011,214.32,214.31,1e-08]
[1759178865087,68.28899148,214.32,214.31,1e-08]
[1759178865386,34.50899148,214.32,214.31,1e-08]
[1759178865560,64.44592011,214.32,214.31,1e-08]
[1759178865761,68.28899148,214.32,214.31,1e-08]
[1759178865961,67.55899148,214.32,214.31,1e-08]
[1759178866158,64.42592011,214.32,214.31,1e-08]
[1759178866389,67.55967031,214.32,214.31,1e-08]
[1759178868664,33.79967031,214.32,214.31,1e-08]
[1759178868886,64.40592011,214.32,214.31,1e-08]
[1759178869077,67.53967031,214.32,214.31,1e-08]
[1759178870076,33.79967031,214.32,214.31,1e-08]
[1759178870280,64.40592011,214.32,214.31,1e-08]
[1759178870707,30.66592011,214.32,214.31,1e-08]
[1759178870864,3.13708759,214.34,214.31,0.68000001]
[1759178871197,59.74,214.33,214.31,1e-08]
[1759178871877,4.66592011,214.32,214.31,1e-08]
[1759178872078,4.66592011,214.32,214.31,0.66000001]
[1759178873271,26.0,214.33,214.31,0.66000001]
[1759178873471,4.66517002,214.36,214.31,0.66000001]
[1759178873472,38.38517002,214.36,214.31,0.66000001]
[1759178873674,38.38517002,214.36,214.32,0.66]
[1759178874371,41.52626461,214.36,214.32,0.66]
[1759178874886,53.18888823,214.36,214.31,1e-08]
[1759178875076,3.36010096,214.34,214.31,1e-08]
[1759178875280,3.14182542,214.33,214.31,1e-08]
[1759178875587,3.86182542,214.33,214.31,1e-08]
[1759178875970,4.66592011,214.32,214.31,1e-08]
[1759178878879,7.80755945,214.33,214.31,0.66000001]
[1759178879074,7.80755945,214.33,214.31,1e-08]
[1759178879310,0.72,214.32,214.31,1e-08]
[1759178879470,37.58182542,214.32,214.31,1e-08]
[1759178879777,51.17741943,214.32,214.31,1e-08]
[1759178880106,53.04959654,214.32,214.31,1e-08]
[1759178881381,57.71551665,214.32,214.31,1e-08]
[1759178883888,23.99551665,214.32,214.31,1e-08]
[1759178884090,57.73551665,214.32,214.31,1e-08]
[1759178884781,35.67992264,214.32,214.31,1e-08]
[1759178884982,67.76550407,214.32,214.31,1e-08]
[1759178885291,70.90732949,214.32,214.31,1e-08]
[1759178885614,33.80774553,214.32,214.31,0.66000001]
[1759178885789,38.42592011,214.32,214.31,0.66000001]
[1759178885996,4.66592011,214.32,214.31,1e-08]
[1759178886596,4.66592011,214.32,214.31,0.66000001]
[1759178886917,38.42570257,214.33,214.31,0.66000001]
[1759178887080,41.56752799,214.33,214.31,0.66000001]
[1759178887287,3.14182542,214.34,214.32,0.66]
[1759178887485,4.66550731,214.34,214.31,1e-08]
[1759178887706,7.80733273,214.34,214.31,1e-08]
[1759178888081,53.23104458,214.34,214.31,1e-08]
[1759178888281,3.86182542,214.33,214.31,1e-08]
[1759178888505,33.76,214.32,214.31,1e-08]
[1759178889240,38.42592011,214.32,214.31,1e-08]
[1759178889529,38.40592011,214.32,214.31,1e-08]
[1759178889710,4.66592011,214.32,214.31,1e-08]
[1759178891002,3.14182542,214.32,214.31,1e-08]
[1759178891217,33.76,214.35,214.31,0.66000001]
[1759178891403,7.8073365,214.34,214.31,0.66000001]
[1759178891818,7.8073365,214.34,214.32,0.66]
[1759178895016,7.8073365,214.34,214.31,1e-08]
[1759178895320,7.8073365,214.34,214.31,0.72000001]
[1759178896135,4.66551108,214.34,214.31,0.72000001]
[1759178896513,7.8073365,214.34,214.31,0.72000001]
[1759178896842,4.66551108,214.34,214.31,0.72000001]
[1759178897013,7.8073365,214.34,214.31,0.72000001]
[1759178897216,4.66551108,214.34,214.31,0.72000001]
[1759178897730,7.8073365,214.34,214.31,1e-08]
[1759178897932,4.66551108,214.34,214.31,0.72000001]
[1759178898120,7.8073365,214.34,214.31,0.72000001]
[1759178898319,4.66551108,214.34,214.31,1e-08]
[1759178898521,7.8073365,214.34,214.31,0.72000001]
[1759178898728,4.66551108,214.34,214.31,0.72000001]
[1759178898906,7.8073365,214.34,214.31,0.72000001]
[1759178899110,4.66551108,214.34,214.32,0.72]
[1759178899334,4.66551108,214.34,214.31,1e-08]
[1759178899528,4.66551108,214.34,214.31,0.72000001]
[1759178899712,7.81007505,214.34,214.31,0.72000001]
[1759178900036,3.14456397,214.34,214.31,1e-08]
[1759178900247,4.66529398,214.35,214.31,0.72000001]
[1759178900426,7.80960993,214.35,214.31,0.72000001]
[1759178900617,5.32529398,214.35,214.31,0.72000001]
[1759178900934,7.80960993,214.35,214.31,0.72000001]
[1759178901130,4.66529398,214.35,214.32,0.67]
[1759178901338,3.14431595,214.35,214.33,0.67]
[1759178901546,3.14431595,214.35,214.31,0.67000001]
[1759178902353,4.66548474,214.34,214.31,0.67000001]
[1759178902711,7.8095747,214.36,214.31,0.67000001]
[1759178902915,4.66525875,214.36,214.32,0.67]
[1759178903229,8.4795747,214.36,214.32,0.67]
[1759178903422,5.33525875,214.36,214.31,1e-08]
[1759178903728,8.4795747,214.36,214.31,0.67000001]
[1759178904036,5.33525875,214.36,214.31,0.67000001]
[1759178904226,8.4795747,214.36,214.31,0.67000001]
[1759178904538,5.33525875,214.36,214.31,0.67000001]
[1759178904717,7.8095747,214.36,214.31,0.67000001]
[1759178905041,5.33525875,214.36,214.31,0.67000001]
[1759178905337,3.14431595,214.36,214.31,1e-08]
[1759178905542,0.67,214.44,214.33,13.59559401]
[1759178905739,3.14220537,214.43,214.34,0.67]
[1759178905916,0.67,214.44,214.34,0.67]
[1759178906534,4.66309704,214.45,214.35,13.59559401]
[1759178906732,4.66288809,214.46,214.37,13.59559401]
[1759178907048,4.66288809,214.46,214.38,0.67]
[1759178907640,0.67,214.47,214.38,0.67]
[1759178908033,5.33267398,214.47,214.38,0.67]
[1759178908535,5.33267398,214.47,214.39,4.66439666]
[1759178908734,5.33267398,214.47,214.4,0.67]
[1759178913622,16.98931593,214.47,214.37,26.67]
[1759178913945,0.67,214.46,214.37,26.67]
[1759178914149,3.35958396,214.43,214.32,39.07589561]
[1759178914455,0.67,214.42,214.33,0.67]
[1759178915540,16.32386548,214.41,214.31,0.67000001]
[1759178915725,0.67,214.4,214.31,14.66977528]
[1759178915922,0.67,214.39,214.31,5.33608024]
[1759178916240,0.67,214.39,214.32,0.67]
[1759178916438,0.67,214.39,214.31,1e-08]
[1759178916645,3.35958396,214.37,214.31,1e-08]
[1759178917146,0.67,214.36,214.31,1e-08]
[1759178917451,4.66526708,214.35,214.31,1e-08]
[1759178917947,0.67,214.34,214.31,1e-08]
[1759178918643,4.66526708,214.35,214.31,1e-08]
[1759178918644,0.67,214.33,214.31,1e-08]
[1759178919731,4.66592011,214.32,214.31,1e-08]
[1759178919931,5.33592011,214.32,214.31,1e-08]
[1759178920130,0.67,214.32,214.31,1e-08]
[1759178920340,4.66571778,214.33,214.31,1e-08]
[1759178920546,0.67,214.32,214.31,1e-08]
[1759178921440,3.35958396,214.35,214.31,1e-08]
[1759178921640,0.67,214.32,214.31,1e-08]
[1759178922734,5.33592011,214.32,214.31,1e-08]
[1759178923735,0.67,214.32,214.31,1e-08]
[1759178923956,0.67,214.35,214.31,1e-08]
[1759178924843,4.66504944,214.36,214.31,1e-08]
[1759178925051,0.67,214.35,214.31,1e-08]
[1759178925629,4.66504944,214.36,214.31,1e-08]
[1759178925862,4.66570242,214.33,214.31,1e-08]
[1759178926246,5.33570242,214.33,214.31,1e-08]
[1759178927266,0.67,214.43,214.33,13.59559401]
[1759178927476,3.13025463,214.51,214.38,26.0]
[1759178927672,0.67,214.45,214.4,26.0]
[1759178927849,0.67,214.44,214.4,26.0]
[1759178928734,0.67,214.43,214.37,26.67]
[1759178929371,5.33352869,214.43,214.37,26.67]
[1759178929546,5.33352869,214.43,214.37,31.33477078]
[1759178929948,0.67,214.43,214.37,31.33477078]
[1759178930156,5.33360927,214.43,214.37,26.67]
[1759178930569,5.33360927,214.43,214.37,31.33479264]
[1759178930758,0.67,214.43,214.37,31.33479264]
[1759178931077,4.66331434,214.44,214.37,31.33479264]
[1759178931382,4.66331434,214.44,214.37,0.67]
[1759178931569,4.66331434,214.44,214.37,5.334831]
[1759178932451,4.66331434,214.44,214.37,5.33483146]
[1759178933175,0.68,214.45,214.38,0.72]
[1759178933381,0.68,214.45,214.39,4.66439666]
[1759178934578,26.68,214.47,214.4,0.72]
[1759178935038,0.68,214.46,214.4,0.72]
[1759178935476,0.68,214.46,214.4,5.38407642]
[1759178935656,0.68,214.47,214.4,5.38407642]
[1759178935858,0.68,214.46,214.4,0.72]
[1759178937346,0.68,214.46,214.4,5.38417342]
[1759178938651,5.34287453,214.46,214.4,5.38417342]
[1759178939578,0.68,214.46,214.4,5.38417342]
[1759178940273,26.0,214.47,214.41,0.72]
[1759178940574,26.68,214.47,214.41,0.72]
[1759178941068,26.68,214.47,214.4,4.66417342]
[1759178941243,31.3427599,214.47,214.4,5.38417342]
[1759178941974,0.68,214.46,214.4,5.38417342]
[1759178942170,0.68,214.53,214.41,14.31559401]
[1759178942377,0.68,214.53,214.42,0.72]
[1759178942574,0.68,214.52,214.43,13.59559401]
[1759178942750,0.1,214.54,214.44,34.34]
[1759178943079,0.78,214.54,214.45,13.59559401]
[1759178943278,0.1,214.54,214.48,4.66243938]
[1759178943450,0.1,214.54,214.49,34.34]
[1759178943856,0.1,214.54,214.5,0.72]
[1759178944072,0.1,214.54,214.5,15.02539677]
[1759178944249,0.1,214.54,214.51,0.72]
[1759178944449,0.1,214.54,214.52,0.72]
[1759178944650,0.1,214.54,214.53,0.72]
[1759178945258,0.1,214.54,214.51,0.72]
[1759178945573,0.1,214.54,214.52,0.72]
[1759178945873,0.1,214.54,214.53,0.72]
[1759178946370,0.1,214.54,214.5,4.66200466]
[1759178946551,0.1,214.54,214.53,0.72]
[1759178946948,0.1,214.54,214.51,0.72]
[1759178947254,0.1,214.54,214.52,0.72]
[1759178947880,0.1,214.54,214.53,0.72]
[1759178948254,0.1,214.54,214.51,0.72]
[1759178948873,0.1,214.54,214.52,0.72]
[1759178949068,0.1,214.54,214.53,0.72]
[1759178949771,0.1,214.54,214.51,4.66173655]
[1759178949967,0.1,214.54,214.52,0.72]
[1759178950169,0.1,214.54,214.5,18.70410577]
[1759178950366,0.1,214.54,214.53,0.72]
[1759178951780,0.1,214.54,214.53,5.38135272]
[1759178952081,0.1,214.54,214.53,18.97694673]
[1759178953059,0.1,214.54,214.53,52.57694673]
[1759178953687,0.78,214.67,214.57,39.59559401]
[1759178953861,0.78,214.67,214.58,33.6]
[1759178954059,0.78,214.67,214.58,34.32]
[1759178954386,5.43837709,214.67,214.59,0.71]
[1759178954754,0.1,214.67,214.6,13.59559401]
[1759178954960,0.1,214.67,214.62,13.59559401]
[1759178955178,0.1,214.67,214.64,13.59559401]
[1759178955585,0.1,214.67,214.66,18.25412377]
[1759178955979,0.1,214.67,214.66,33.6]
[1759178957396,0.1,214.67,214.62,40.30559401]
[1759178957558,0.66,214.66,214.62,13.59559401]
[1759178957882,0.66,214.65,214.6,13.59559401]
[1759178958096,0.66,214.65,214.61,33.6]
[1759178958380,5.41832702,214.67,214.61,14.30559401]
[1759178958578,0.1,214.67,214.62,34.31]
[1759178958775,0.1,214.67,214.63,0.71]
[1759178958987,0.1,214.67,214.64,0.71]
[1759178959287,0.1,214.67,214.65,0.71]
[1759178959481,0.1,214.67,214.66,34.31]
[1759178959663,0.1,214.67,214.66,52.56412377]
[1759178962971,0.1,214.67,214.66,18.96412377]
[1759178963178,0.1,214.67,214.66,52.54412377]
[1759178963901,0.1,214.69,214.68,39.59559401]
[1759178964405,0.1,214.69,214.68,40.27559401]
[1759178964611,0.1,214.69,214.68,73.85559401]
[1759178965780,0.1,214.69,214.68,78.51368978]
[1759178966999,0.1,214.69,214.68,44.93368978]
[1759178967183,0.1,214.69,214.68,78.51368978]
[1759178968395,0.1,214.69,214.68,44.93368978]
[1759178968694,0.1,214.69,214.68,78.51368978]
[1759178969274,0.1,214.7,214.69,39.59559401]
[1759178969493,0.1,214.7,214.69,40.27559401]
[1759178970088,0.1,214.7,214.69,73.15559401]
[1759178970505,0.1,214.7,214.69,39.59559401]
[1759178970668,0.79,214.7,214.69,47.15559401]
[1759178971073,0.79,214.7,214.69,51.81347281]
[1759178972800,0.79,214.7,214.69,38.2178788]
[1759178973001,0.79,214.7,214.69,33.56]
[1759178973410,0.79,214.7,214.67,13.59559401]
[1759178973592,0.69,214.69,214.61,13.59559401]
[1759178973782,0.69,214.68,214.62,33.56]
[1759178973982,0.69,214.67,214.61,18.25520912]
[1759178974193,0.69,214.66,214.63,33.56]
[1759178974496,0.69,214.65,214.63,38.21914673]
[1759178974713,0.69,214.65,214.63,4.65914673]
[1759178974915,0.69,214.65,214.64,33.56]
[1759178975405,0.69,214.68,214.64,33.56]
[1759178975579,0.69,214.67,214.64,33.56]
[1759178975781,0.69,214.66,214.64,33.56]
[1759178975972,0.69,214.65,214.64,33.56]
[1759178976177,0.69,214.65,214.61,13.59559401]
[1759178976409,0.69,214.64,214.62,33.56]
[1759178976584,4.65867144,214.66,214.62,33.56]
[1759178976792,0.69,214.63,214.62,47.15559401]
[1759178977403,0.69,214.63,214.62,33.56]
[1759178978306,11.64547631,214.68,214.62,33.56]
[1759178978481,0.69,214.67,214.62,33.56]
[1759178978675,0.69,214.66,214.62,33.56]
[1759178978879,0.69,214.65,214.62,33.56]
[1759178979585,0.69,214.65,214.62,38.21935886]
[1759178979786,0.69,214.68,214.63,13.59559401]
[1759178979988,0.69,214.67,214.64,33.56]
[1759178980202,0.69,214.66,214.63,13.59559401]
[1759178980390,0.69,214.66,214.64,33.56]
[1759178980576,0.69,214.68,214.64,33.56]
[1759178980775,0.69,214.68,214.64,38.21896358]
[1759178981006,0.69,214.67,214.64,33.56]
[1759178981593,0.69,214.67,214.64,38.21894509]
[1759178982383,4.65814525,214.68,214.64,33.56]
[1759178982588,0.69,214.66,214.63,13.59559401]
[1759178982788,4.65814525,214.68,214.62,4.6592448]
[1759178983005,0.69,214.65,214.63,33.56]
[1759178983506,0.69,214.65,214.64,33.56]
[1759178983693,4.65814525,214.68,214.64,33.56]
[1759178983889,0.69,214.67,214.64,33.56]
[1759178984208,0.69,214.66,214.65,33.56]
[1759178984515,0.69,214.66,214.6,13.59559401]
[1759178984815,0.69,214.65,214.59,26.0]
[1759178984985,0.69,214.64,214.58,13.59559401]
[1759178985313,0.69,214.63,214.59,33.56]
[1759178986507,5.34870814,214.66,214.6,5.33983224]
[1759178987204,5.34870814,214.66,214.6,4.65983224]
[1759178987403,5.34870814,214.66,214.59,38.22002026]
[1759178987703,0.69,214.65,214.59,38.22002026]
[1759178988498,0.69,214.65,214.6,13.59559401]
[1759178988698,0.69,214.67,214.6,14.27559401]
[1759178989796,0.69,214.67,214.61,0.68]
[1759178990029,0.69,214.67,214.62,33.54]
[1759178990214,0.69,214.67,214.63,13.59559401]
[1759178990415,0.69,214.67,214.63,18.25472818]
[1759178991102,0.1,214.7,214.62,34.22]
[1759178991103,0.69,214.66,214.62,33.54]
[1759178991310,0.7,214.65,214.63,33.54]
[1759178991504,0.7,214.65,214.64,33.54]
[1759178995513,5.35874679,214.65,214.58,4.66008514]
[1759178995722,0.7,214.64,214.56,5.3204851]
[1759178995892,0.7,214.63,214.57,33.54]
[1759178996094,0.7,214.63,214.56,18.91607911]
[1759178996303,0.7,214.63,214.56,14.25559401]
[1759178996704,0.7,214.63,214.57,33.54]
[1759178997308,0.1,214.7,214.6,13.59559401]
[1759178997627,0.7,214.69,214.61,33.54]
[1759178997799,0.1,214.7,214.61,34.2]
[1759178998002,0.7,214.69,214.61,34.2]
[1759178998210,5.3578788,214.69,214.61,34.2]
[1759178998518,0.1,214.7,214.63,13.59559401]
[1759178998719,0.1,214.7,214.65,13.59559401]
[1759178999216,0.1,214.7,214.66,0.66]
[1759178999527,0.1,214.7,214.67,0.66]
[1759178999701,0.1,214.7,214.68,33.54]
[1759178999896,0.1,214.7,214.68,34.2]
[1759179000408,0.1,214.7,214.69,5.3178788]
[1759179000598,0.1,214.7,214.69,4.6578788]
[1759179000800,0.1,214.7,214.69,5.3178788]
[1759179001214,0.1,214.7,214.69,18.91347281]
[1759179001412,0.1,214.7,214.69,52.45347281]
[1759179003845,0.1,214.7,214.69,78.45347281]
[1759179004009,0.1,214.7,214.69,52.45347281]
[1759179004333,0.1,214.7,214.68,33.52]
[1759179005324,0.1,214.7,214.68,38.17804217]
[1759179005709,0.1,214.7,214.69,14.25559401]
[1759179006604,0.1,214.7,214.69,18.91347281]
[1759179007132,0.1,214.73,214.72,26.0]
[1759179007299,0.1,214.73,214.72,73.11559401]
[1759179007835,0.1,214.73,214.72,73.77559401]
[1759179008734,0.1,214.73,214.72,78.43282202]
[1759179009432,0.1,214.73,214.72,77.77282202]
[1759179010824,0.1,214.73,214.72,78.43282202]
[1759179011414,0.1,214.73,214.72,77.77282202]
[1759179011715,0.1,214.73,214.72,78.43282202]
[1759179012716,0.1,214.73,214.72,77.77282202]
[1759179013518,0.1,214.73,214.72,78.43282202]
[1759179014223,0.1,214.73,214.72,81.77982812]
[1759179015631,1e-08,214.73,214.72,81.77982812]
[1759179017423,1e-08,214.73,214.72,78.43282202]
[1759179017625,1e-08,214.73,214.72,81.77982812]
[1759179019621,0.68,214.8,214.72,81.77982812]
[1759179019622,0.68,214.8,214.77,13.59559401]
[1759179019821,0.68,214.8,214.78,33.5]
[1759179020024,0.68,214.79,214.78,47.09559401]
[1759179021434,0.71,214.81,214.78,51.751521]
[1759179021641,0.71,214.8,214.78,51.751521]
[1759179022237,0.71,214.79,214.78,51.751521]
[1759179023041,0.71,214.81,214.78,51.751521]
[1759179023241,0.71,214.8,214.78,51.751521]
[1759179023649,0.71,214.79,214.78,14.34131436]
[1759179023829,0.71,214.79,214.78,33.5]
[1759179024225,0.71,214.79,214.74,18.25237774]
[1759179024428,16.2906081,214.85,214.74,18.25237774]
[1759179024429,0.71,214.78,214.75,33.5]
[1759179024632,0.71,214.77,214.74,13.59559401]
[1759179024844,0.71,214.76,214.75,33.5]
[1759179025040,0.71,214.76,214.75,38.15657741]
[1759179025742,0.71,214.76,214.75,33.5]
[1759179026136,0.71,214.76,214.75,38.15657741]
[1759179026346,0.71,214.78,214.75,38.15657741]
[1759179026731,4.65506005,214.82,214.75,41.50358351]
[1759179026945,0.71,214.81,214.75,41.50358351]
[1759179027225,0.71,214.8,214.75,33.5]
[1759179027562,0.71,214.79,214.74,30.59044192]
[1759179027751,0.71,214.78,214.75,33.5]
[1759179028065,0.71,214.77,214.75,33.5]
[1759179028231,0.71,214.77,214.75,38.15656712]
[1759179029953,0.71,214.77,214.75,33.5]
[1759179030155,0.71,214.76,214.75,33.5]
[1759179030453,0.71,214.76,214.74,31.90021213]
[1759179030758,0.71,214.76,214.75,33.5]
[1759179032333,0.71,214.78,214.75,38.15657741]
[1759179032746,0.71,214.77,214.75,38.15657741]
[1759179033735,4.65571273,214.79,214.76,33.48]
[1759179034063,0.71,214.78,214.76,33.48]
[1759179034360,0.71,214.77,214.76,33.48]
[1759179037350,4.65531001,214.81,214.76,33.48]
[1759179037547,0.71,214.8,214.77,33.48]
[1759179037751,5.36571022,214.79,214.77,33.48]
[1759179037939,0.71,214.78,214.77,33.48]
[1759179038764,0.71,214.78,214.74,13.64784181]
[1759179038939,0.71,214.77,214.74,33.48]
[1759179039145,0.71,214.76,214.66,4.65849536]
[1759179039345,0.71,214.75,214.67,33.48]
[1759179039549,0.71,214.74,214.67,33.48]
[1759179039761,5.36701113,214.73,214.67,33.48]
[1759179040267,0.71,214.72,214.67,33.48]
[1759179040564,8.00401723,214.73,214.67,33.48]
[1759179040565,0.71,214.71,214.67,33.48]
[1759179040764,0.71,214.7,214.67,33.48]
[1759179040941,0.71,214.69,214.67,33.48]
[1759179041136,0.71,214.68,214.67,33.48]
[1759179041351,0.71,214.68,214.62,33.58]
[1759179041553,0.71,214.67,214.63,33.48]
[1759179041748,0.71,214.66,214.64,33.48]
[1759179041942,4.65847575,214.67,214.65,33.48]
[1759179042581,0.71,214.66,214.65,33.48]
[1759179042754,4.65852976,214.66,214.65,33.48]
[1759179042946,5.36852976,214.66,214.64,33.48]
[1759179043146,0.71,214.65,214.56,13.59559401]
[1759179043358,0.71,214.64,214.57,33.48]
[1759179043663,4.65852976,214.66,214.57,33.48]
[1759179043970,0.71,214.65,214.59,13.59559401]
[1759179044262,0.71,214.64,214.59,27.8039656]
[1759179044562,4.65808408,214.69,214.6,0.7]
[1759179044860,4.65831275,214.67,214.61,33.48]
[1759179045066,0.71,214.66,214.61,33.48]
[1759179045237,0.71,214.65,214.59,14.20837159]
[1759179045438,0.71,214.64,214.55,39.59559401]
[1759179045639,0.71,214.63,214.54,0.7]
[1759179045860,0.71,214.63,214.55,33.48]
[1759179046058,3.3470061,214.65,214.55,33.48]
[1759179046263,2.85385914,214.64,214.55,33.48]
[1759179046442,0.71,214.63,214.55,33.48]
[1759179046641,0.71,214.62,214.55,38.14071479]
[1759179046868,0.71,214.61,214.55,33.48]
[1759179047367,0.71,214.6,214.54,14.41302739]
[1759179047569,0.71,214.6,214.56,33.48]
[1759179047862,0.71,214.6,214.54,14.41302739]
[1759179048161,0.71,214.59,214.55,33.48]
[1759179048363,0.71,214.58,214.55,33.48]
[1759179048568,0.71,214.58,214.56,33.48]
[1759179048760,5.37031209,214.58,214.52,28.43155526]
[1759179048960,5.37031209,214.58,214.53,33.48]
[1759179049462,5.37031209,214.58,214.53,34.18]
[1759179049968,0.71,214.58,214.53,34.18]
[1759179050750,4.66006524,214.59,214.54,0.7]
[1759179050954,0.71,214.58,214.53,38.14118555]
[1759179051157,0.71,214.58,214.53,38.84118555]
[1759179051855,0.67,214.61,214.54,0.67]
[1759179052765,31.3293727,214.63,214.56,4.66070096]